fUSD/lending_fUSD_20240607
["ID","MTS","AMOUNT","RATE_DAILY","PERIOD"]
[328773205,1717782640455,-151.0,0.00029,7]
[328773207,1717782640465,-273.795756,0.00029,7]
[328773209,1717782640475,-151.0,0.00029,7]
[328773211,1717782640485,-684.58398729,0.00029082,2]
[328773213,1717782640494,-1000.0,0.000291,2]
[328773215,1717782640504,-684.58398729,0.00029173,2]
[328773217,1717782640514,-199.85,0.00029178,2]
[328773219,1717782640524,-321.31956092,0.0002922,2]
[328773221,1717782640534,-684.58398729,0.00029264,2]
[328773223,1717782640544,-159.19903636,0.00029304,2]
[328773225,1717782640554,-151.31622485,0.00029337,2]
[328773227,1717782640564,-684.58398729,0.00029355,2]
[328773229,1717782640574,-1500.0,0.00029375,2]
[328773231,1717782640585,-159.19903636,0.00029386,2]
[328773233,1717782640598,-851.76469124,0.00029389,2]
[328773235,1717782640608,-152.30409447,0.00029392,2]
[328773237,1717782640618,-285.9507479,0.000294,2]
[328773239,1717782640627,-1349.2175,0.000294,2]
[328773241,1717782640639,-843.0632,0.000294,2]
[328773243,1717782640649,-1028.0,0.000294,2]
[328773245,1717782640659,-153.95685465,0.00029412,2]
[328773247,1717782640669,-684.58398729,0.00029445,2]
[328773249,1717782640681,-150.0,0.00029452,2]
[328773251,1717782640691,-150.0,0.00029452,2]
[328773253,1717782640701,-150.0,0.00029452,2]
[328773255,1717782640711,-159.81070052,0.00029471,2]
[328773257,1717782640720,-151.31622485,0.00029473,2]
[328773259,1717782640730,-150.0,0.00029478,2]
[328773261,1717782640740,-154.56666579,0.0002948,2]
[328773264,1717782640751,-152.30409447,0.00029487,2]
[328773265,1717782640774,-7651.79200001,0.00029489,2]
[328773267,1717782640784,-151.31622485,0.00029489,2]
[328773269,1717782640794,-152.04,0.0002949,2]
[328773272,1717782640803,-155.12204795,0.00029497,2]
[328773274,1717782640813,-123408.52331866,0.000295,7]
[328773275,1717782640822,-151.31622485,0.00029512,2]
[328773277,1717782640832,-296.91,0.0002953,2]
[328773280,1717782640842,-684.58398729,0.00029536,2]
[328773281,1717782640851,-321.31956092,0.0002956,2]
[328773283,1717782640861,-156.11987574,0.00029563,2]
[328773286,1717782640870,-152.30409447,0.00029576,2]
[328773288,1717782640889,-151.31622485,0.00029599,2]
[328773291,1717782640900,-160.86846231,0.00029608,2]
[328773293,1717782640910,-684.58398729,0.00029627,2]
[328773295,1717782640920,-851.76469123,0.00029645,2]
[328773297,1717782640929,-150.0,0.00029679,2]
[328773299,1717782640939,-152.30409447,0.00029682,2]
[328773301,1717782640949,-150.0,0.0002969,2]
[328773303,1717782640959,-150.0,0.00029716,2]
[328773305,1717782640970,-684.58398729,0.00029718,2]
[328773307,1717782640980,-150.0,0.00029728,2]
[328773309,1717782640990,-151.0,0.00029741,2]
[328773311,1717782641000,-443.46013073,0.00029754,2]
[328773313,1717782641010,-150.0,0.00029755,2]
[328773315,1717782641019,-500.0,0.0002976,2]
[328773317,1717782641029,-200.0,0.0002976,2]
[328773319,1717782641040,-152.30409447,0.00029768,2]
[328773321,1717782641050,-150.0,0.00029789,2]
[328773323,1717782641060,-684.58398729,0.00029809,2]
[328773325,1717782641070,-150.0,0.00029814,2]
[328773327,1717782641080,-381.76420571,0.00029815,2]
[328773329,1717782641089,-151.31622485,0.00029819,2]
[328773330,1717782641099,-244.63622692,0.00029853,2]
[328773332,1717782641109,-152.04,0.00029853,2]
[328773334,1717782641118,-500.0,0.00029863,2]
[328773336,1717782641128,-500.0,0.00029863,2]
[328773338,1717782641138,-500.0,0.00029863,2]
[328773340,1717782641147,-500.0,0.00029863,2]
[328773342,1717782641157,-500.0,0.00029863,2]
[328773344,1717782641167,-494.97077606,0.00029863,2]
[328773346,1717782641178,-500.0,0.00029863,4]
[328773348,1717782641188,-500.0,0.00029863,4]
[328773350,1717782641197,-500.0,0.00029863,4]
[328773352,1717782641208,-552.83292398,0.00029863,4]
[328773354,1717782641218,-20000.0,0.00029863,2]
[328773356,1717782641228,-20000.0,0.00029863,2]
[328773358,1717782641238,-20000.0,0.00029863,2]
[328773360,1717782641248,-10478.04692218,0.00029863,2]
[328773362,1717782641258,-500.0,0.00029863,4]
[328773365,1717782641268,-500.0,0.00029863,4]
[328773369,1717782641278,-209.550097,0.00029863,7]
[328773373,1717782641288,-151.0,0.00029863,7]
[328773377,1717782641297,-167.71554089,0.00029863,4]
[328773379,1717782641307,-210.30786,0.00029863,7]
[328773381,1717782641318,-210.30786,0.00029863,7]
[328773384,1717782641327,-215.027154,0.00029863,7]
[328773387,1717782641336,-151.0,0.00029863,7]
[328773389,1717782641346,-151.0,0.00029863,7]
[328773391,1717782641356,-500.0,0.00029863,4]
[328773393,1717782641365,-500.0,0.00029863,4]
[328773395,1717782641375,-500.0,0.00029863,4]
[328773397,1717782641385,-500.0,0.00029863,4]
[328773399,1717782641395,-165.55477055,0.00029863,4]
[328773401,1717782641405,-151.0,0.00029863,7]
[328773403,1717782641415,-3896.426024,0.00029863,7]
[328773405,1717782641424,-3896.426024,0.00029863,7]
[328773407,1717782641434,-500.0,0.00029863,4]
[328773409,1717782641444,-251.26258391,0.00029863,4]
[328773411,1717782641454,-151.0,0.00029863,7]
[328773413,1717782641465,-500.0,0.00029863,4]
[328773415,1717782641475,-500.0,0.00029863,4]
[328773417,1717782641484,-500.0,0.00029863,4]
[328773419,1717782641493,-500.0,0.00029863,4]
[328773421,1717782641503,-222.07342083,0.00029863,4]
[328773423,1717782641512,-199.772707,0.00029863,7]
[328773424,1717782641522,-199.772707,0.00029863,7]
[328773426,1717782641532,-151.0,0.00029863,7]
[328773428,1717782641542,-151.0,0.00029863,7]
[328773430,1717782641551,-500.0,0.00029863,4]
[328773432,1717782641562,-500.0,0.00029863,4]
[328773434,1717782641572,-500.0,0.00029863,4]
[328773436,1717782641581,-500.0,0.00029863,4]
[328773438,1717782641591,-500.0,0.00029863,4]
[328773440,1717782641606,-500.0,0.00029863,4]
[328773442,1717782641616,-500.0,0.00029863,4]
[328773444,1717782641625,-151.0,0.00029863,7]
[328773446,1717782641636,-151.0,0.00029863,7]
[328773448,1717782641645,-500.0,0.00029863,4]
[328773450,1717782641656,-500.0,0.00029863,4]
[328773452,1717782641666,-500.0,0.00029863,4]
[328773454,1717782641679,-500.0,0.00029863,4]
[328773456,1717782641688,-500.0,0.00029863,4]
[328773458,1717782641698,-500.0,0.00029863,4]
[328773459,1717782641707,-500.0,0.00029863,4]
[328773460,1717782641717,-500.0,0.00029863,4]
[328773461,1717782641727,-425.82339371,0.00029863,4]
[328773462,1717782641737,-500.0,0.00029863,4]
[328773463,1717782641747,-379.65144406,0.00029863,4]
[328773464,1717782641756,-151.0,0.00029863,7]
[328773465,1717782641767,-500.0,0.00029863,4]
[328773466,1717782641777,-98513.8425,0.00029886,2]
[328773467,1717782641787,-151.0,0.00029886,7]
[328773468,1717782641797,-153.166138,0.00029886,7]
[328773470,1717782641807,-151.0,0.00029886,7]
[328773471,1717782641818,-152.546382,0.00029886,7]
[328773473,1717782641828,-151.0,0.00029886,7]
[328773475,1717782641838,-437.542275,0.00029886,7]
[328773477,1717782641848,-437.542275,0.00029886,7]
[328773479,1717782641857,-151.0,0.00029886,7]
[328773481,1717782641867,-154.396634,0.00029886,7]
[328773483,1717782641877,-3331.85,0.00029899,2]
[328773485,1717782641887,-274.0,0.00029899,5]
[328773487,1717782641897,-614.641,0.000299,2]
[328773510,1717782642107,-168.00484703,0.000299,2]
[328773512,1717782642118,-443.46013073,0.000299,2]
[328773514,1717782642128,-321.31956092,0.000299,2]
[328773516,1717782642137,-684.58398729,0.000299,2]
[328773518,1717782642147,-851.76469123,0.000299,2]
[328773520,1717782642156,-155.12204795,0.00029904,2]
[328773522,1717782642165,-150.0,0.00029918,2]
[328773524,1717782642176,-150.0,0.00029937,2]
[328773526,1717782642188,-150.0,0.00029953,2]
[328773528,1717782642200,-150.0,0.00029954,2]
[328773530,1717782642210,-150.0,0.00029961,2]
[328773532,1717782642220,-156.02019916,0.00029965,2]
[328773534,1717782642230,-150.0,0.00029969,2]
[328773536,1717782642239,-152.04,0.0002997,2]
[328773538,1717782642250,-152.04,0.0002997,2]
[328773540,1717782642260,-4611.97868944,0.00029971,2]
[328773542,1717782642269,-151.0,0.00029971,7]
[328773544,1717782642279,-196950.10928207,0.0002998,7]
[328773546,1717782642289,-210.30786,0.0002998,7]
[328773548,1717782642299,-210.30786,0.0002998,7]
[328773550,1717782642309,-151.0,0.0002998,7]
[328773552,1717782642327,-200.488253,0.0002998,7]
[328773554,1717782642342,-151.0,0.0002998,7]
[328773556,1717782642351,-3896.426024,0.0002998,7]
[328773558,1717782642361,-3896.426024,0.0002998,7]
[328773560,1717782642371,-151.0,0.0002998,7]
[328773562,1717782642380,-199.772707,0.0002998,7]
[328773564,1717782642390,-199.772707,0.0002998,7]
[328773566,1717782642399,-151.0,0.0002998,7]
[328773568,1717782642408,-151.0,0.0002998,7]
[328773570,1717782642418,-151.0,0.0002998,7]
[328773571,1717782642428,-151.0,0.0002998,7]
[328773574,1717782642437,-151.0,0.0002998,7]
[328773576,1717782642447,-154.31394356,0.00029981,2]
[328773577,1717782642457,-151.31622485,0.00029982,2]
[328773579,1717782642466,-1500.0,0.00029983,2]
[328773581,1717782642476,-150.0,0.00029984,2]
[328773583,1717782642486,-159.19903636,0.00029986,2]
[328773585,1717782642495,-972.0,0.00029986,2]
[328773587,1717782642506,-1648.0,0.00029986,2]
[328773590,1717782642515,-1830.0,0.00029986,2]
[328773591,1717782642526,-1265.0,0.00029986,2]
[328773593,1717782642535,-739.263,0.00029986,2]
[328773596,1717782642545,-208.906,0.00029986,2]
[328773597,1717782642554,-252.946,0.00029986,2]
[328773599,1717782642565,-150.0,0.00029986,2]
[328773601,1717782642574,-150.0,0.00029986,2]
[328773603,1717782642584,-150.236,0.00029986,2]
[328773605,1717782642597,-21435.2413944,0.00029987,2]
[328773607,1717782642606,-293.948505,0.00029987,7]
[328773609,1717782642615,-26958.80590278,0.0002999,3]
[328773611,1717782642625,-152.04,0.0002999,2]
[328773613,1717782642635,-152.04,0.0002999,2]
[328773615,1717782642645,-152.04,0.0002999,2]
[328773617,1717782642654,-152.04,0.0002999,2]
[328773619,1717782642665,-152.04,0.0002999,2]
[328773621,1717782642676,-152.04,0.0002999,2]
[328773623,1717782642687,-152.04,0.0002999,2]
[328773625,1717782642696,-152.04,0.0002999,2]
[328773627,1717782642706,-152.04,0.0002999,2]
[328773629,1717782642715,-152.04,0.0002999,2]
[328773631,1717782642725,-152.04,0.0002999,2]
[328773633,1717782642735,-152.04,0.0002999,2]
[328773635,1717782642745,-152.04,0.0002999,2]
[328773637,1717782642756,-152.04,0.0002999,2]
[328773639,1717782642765,-152.04,0.0002999,2]
[328773641,1717782642776,-152.04,0.0002999,2]
[328773643,1717782642785,-152.04,0.0002999,2]
[328773645,1717782642795,-152.04,0.0002999,2]
[328773647,1717782642804,-152.04,0.0002999,2]
[328773649,1717782642814,-152.04,0.0002999,2]
[328773651,1717782642824,-152.04,0.0002999,2]
[328773653,1717782642833,-152.04,0.0002999,2]
[328773655,1717782642842,-152.04,0.0002999,2]
[328773657,1717782642852,-152.04,0.0002999,2]
[328773659,1717782642862,-152.04,0.0002999,2]
[328773661,1717782642873,-152.04,0.0002999,2]
[328773663,1717782642883,-152.04,0.0002999,2]
[328773665,1717782642892,-152.04,0.0002999,2]
[328773667,1717782642901,-152.04,0.0002999,2]
[328773669,1717782642911,-152.04,0.0002999,2]
[328773671,1717782642920,-152.04,0.0002999,2]
[328773673,1717782642930,-156.02019917,0.00029991,2]
[328773675,1717782642940,-786.30821976,0.00029994,4]
[328773677,1717782642951,-159.21109873,0.00029996,2]
[328773679,1717782642960,-500.0,0.00029997,2]
[328773681,1717782642970,-511.91848941,0.00029997,2]
[328773683,1717782642981,-500.0,0.00029997,4]
[328773685,1717782642990,-500.0,0.00029997,4]
[328773687,1717782642999,-500.0,0.00029997,4]
[328773689,1717782643009,-500.0,0.00029997,2]
[328773691,1717782643018,-500.0,0.00029997,2]
[328773693,1717782643028,-500.0,0.00029997,2]
[328773695,1717782643037,-500.0,0.00029997,4]
[328773697,1717782643047,-500.0,0.00029997,4]
[328773699,1717782643056,-500.0,0.00029997,4]
[328773701,1717782643065,-500.0,0.00029997,2]
[328773703,1717782643075,-500.0,0.00029997,2]
[328773705,1717782643084,-500.0,0.00029997,2]
[328773707,1717782643093,-500.0,0.00029997,4]
[328773709,1717782643103,-491.19097906,0.00029997,4]
[328773711,1717782643112,-500.0,0.00029997,4]
[328773713,1717782643122,-500.0,0.00029997,4]
[328773715,1717782643131,-500.0,0.00029997,4]
[328773717,1717782643141,-500.0,0.00029997,4]
[328773719,1717782643151,-500.0,0.00029997,4]
[328773721,1717782643161,-500.0,0.00029997,4]
[328773723,1717782643170,-500.0,0.00029997,4]
[328773725,1717782643180,-500.0,0.00029997,4]
[328773727,1717782643190,-500.0,0.00029997,4]
[328773729,1717782643199,-500.0,0.00029997,4]
[328773731,1717782643209,-515.05476655,0.00029997,4]
[328773733,1717782643219,-500.0,0.00029997,2]
[328773735,1717782643230,-487.63,0.00029997,2]
[328773739,1717782643240,-519.04501355,0.00029997,4]
[328773741,1717782643249,-500.0,0.00029997,4]
[328773743,1717782643259,-500.0,0.00029997,2]
[328773745,1717782643268,-500.0,0.00029997,2]
[328773747,1717782643278,-435.71855959,0.00029997,2]
[328773749,1717782643287,-522.27412682,0.00029997,4]
[328773751,1717782643297,-500.0,0.00029997,4]
[328773752,1717782643306,-500.0,0.00029997,4]
[328773753,1717782643317,-500.0,0.00029997,4]
[328773754,1717782643326,-955.26659238,0.00029997,2]
[328773755,1717782643335,-4946.82350419,0.00029998,2]
[328773756,1717782643346,-156.53865947,0.00029998,2]
[328773757,1717782643355,-1011.98316121,0.00029998,2]
[328773758,1717782643364,-500.0,0.00029998,4]
[328773759,1717782643374,-6135.98835859,0.00029998,2]
[328773760,1717782643383,-241.34819951,0.00029998,2]
[328773762,1717782643393,-3017.14790964,0.00029998,2]
[328773764,1717782643402,-490.06503788,0.00029998,2]
[328773766,1717782643411,-643.96114603,0.00029998,2]
[328773768,1717782643421,-3537.31948195,0.00029998,2]
[328773770,1717782643430,-155.40225675,0.00029998,2]
[328773772,1717782643439,-500.0,0.00029998,2]
[328773774,1717782643448,-263.66693383,0.00029998,2]
[328773776,1717782643458,-785.8451137,0.00029998,2]
[328773778,1717782643467,-500.0,0.00029998,2]
[328773780,1717782643477,-719.10246269,0.00029998,2]
[328773782,1717782643486,-1261.07267491,0.00029998,2]
[328773784,1717782643496,-217.32072534,0.00029998,2]
[328773786,1717782643505,-658.7426153,0.00029998,2]
[328773788,1717782643515,-481.77513052,0.00029998,2]
[328773790,1717782643524,-3064.39202491,0.00029998,2]
[328773792,1717782643534,-500.0,0.00029998,4]
[328773794,1717782643543,-2010.60105363,0.00029999,2]
[328773796,1717782643553,-207.26121815,0.00029999,2]
[328773798,1717782643562,-155.0,0.00029999,2]
[328773800,1717782643575,-1251.30968724,0.00029999,2]
[328773802,1717782643585,-444.21575937,0.00029999,2]
[328773804,1717782643596,-150.0,0.00029999,2]
[328773806,1717782643607,-500.0,0.00029999,2]
[328773808,1717782643616,-500.0,0.00029999,2]
[328773810,1717782643625,-500.0,0.00029999,2]
[328773812,1717782643635,-500.0,0.00029999,2]
[328773814,1717782643645,-500.0,0.00029999,2]
[328773816,1717782643654,-500.0,0.00029999,2]
[328773818,1717782643664,-500.0,0.00029999,2]
[328773820,1717782643674,-154.78469491,0.00029999,2]
[328773822,1717782643684,-500.0,0.00029999,4]
[328773824,1717782643693,-500.0,0.00029999,4]
[328773826,1717782643703,-500.0,0.00029999,4]
[328773828,1717782643712,-500.0,0.00029999,4]
[328773830,1717782643722,-240.5,0.00029999,4]
[328773832,1717782643732,-179.04739428,0.0003,5]
[328773834,1717782643741,-372553.23898508,0.0003,2]
[328773847,1717782643860,-1466798.95577364,0.0003,2]
[328773849,1717782643872,-2103.47087058,0.0003,2]
[328773862,1717782643991,-7537.71841204,0.00016712,2]
[328773864,1717782644001,-151.0,0.00029,7]
[328773866,1717782644011,-968.661682,0.00029,7]
[328773868,1717782644020,-151.0,0.00029,7]
[328773870,1717782644030,-500.0,0.00029863,4]
[328773872,1717782644039,-500.0,0.00029863,4]
[328773874,1717782644049,-500.0,0.00029863,4]
[328773876,1717782644058,-151.0,0.00029863,7]
[328773878,1717782644070,-500.0,0.00029863,4]
[328773880,1717782644080,-573.68032739,0.00029863,4]
[328773882,1717782644089,-968.661682,0.00029863,7]
[328773884,1717782644099,-277.699148,0.00029971,7]
[328773886,1717782644110,-968.661682,0.00029971,7]
[328773888,1717782644119,-968.661682,0.0002998,7]
[328773890,1717782644129,-296353.18835562,0.0003,2]
[328773893,1717782644140,-1409.83044,0.0003,2]
[328773895,1717782644152,-353196.13891314,0.0003,2]
[328773897,1717782644164,-3880.80357284,0.0003,2]
[328773902,1717782644200,-968.661682,0.00029,7]
[328773904,1717782644209,-808.329534,0.00029863,7]
[328773906,1717782644222,-160.332148,0.00029863,7]
[328773908,1717782644232,-968.661682,0.00029971,7]
[328773910,1717782644242,-150.07,0.00029986,2]
[328773912,1717782644252,-377131.30117574,0.0003,2]
[328773914,1717782644263,-20878.66619942,0.0003,2]
[328773917,1717782644282,-281.5813,0.0002998,7]
[328774053,1717782646854,-636.8091162,0.0002998,7]
[328774056,1717782659246,10981.85909198,0.000105,2]
[328774057,1717782696327,-4000.0,0.00012976,2]
[328774058,1717782697112,-4000.0,0.00012976,2]
[328774059,1717782697698,-4000.0,0.00012976,2]
[328774060,1717782698262,-4000.0,0.00012976,2]
[328774061,1717782705383,4000.0,0.000105,2]
[328774062,1717782705409,11356.00286739,0.000105,2]
[328774063,1717782705434,9298.53966167,0.000105,2]
[328774064,1717782708230,-144.9638,0.00012976,2]
[328774065,1717782719359,3855.0362,0.000105,2]
[328774066,1717782719382,4000.0,0.000105,2]
[328774067,1717782719406,4000.0,0.000105,2]
[328774068,1717782719428,8942.58574145,0.000105,2]
[328774069,1717782725230,20000.0,0.000105,2]
[328774070,1717782741263,4000.0,0.000105,2]
[328774071,1717782741290,4000.0,0.000105,2]
[328774073,1717782771367,155.20058572,0.000105,2]
[328774074,1717782772474,362.81476569,0.000105,2]
[328774075,1717782774485,1362.97468143,0.000105,2]
[328774076,1717782775222,1492.01660132,0.000105,2]
[328774077,1717782779203,289.80585729,0.000105,2]
[328774078,1717782780103,337.18750855,9.975e-05,2]
[328774079,1717782780128,620.03851433,9.975e-05,2]
[328774080,1717782799769,289.69966491,0.000105,2]
[328774081,1717782806802,3090.26182076,9.975e-05,2]
[328774082,1717782806826,452.96081966,9.975e-05,2]
[328774083,1717782809240,3547.03918034,9.975e-05,2]
[328774084,1717782809265,452.96081966,9.975e-05,2]
[328774085,1717782827235,3547.03918034,9.975e-05,2]
[328774086,1717782827259,4000.0,9.975e-05,2]
[328774087,1717782827284,452.96081966,9.975e-05,2]
[328774088,1717782847230,3547.03918034,9.975e-05,2]
[328774089,1717782847253,4000.0,9.975e-05,2]
[328774090,1717782847278,452.96081966,9.975e-05,2]
[328774091,1717782877249,3547.03918034,9.975e-05,2]
[328774092,1717782877276,4000.0,9.975e-05,2]
[328774093,1717782877301,4000.0,9.975e-05,2]
[328774094,1717782877324,452.96081966,9.975e-05,2]
[328774095,1717782925445,3547.03918034,9.975e-05,2]
[328774096,1717782925469,4000.0,9.975e-05,2]
[328774097,1717782925494,4000.0,9.975e-05,2]
[328774098,1717782925517,1072.74838511,9.975e-05,2]
[328774099,1717782959244,2927.25161489,9.975e-05,2]
[328774100,1717782959272,4000.0,9.975e-05,2]
[328774101,1717782959298,4000.0,9.975e-05,2]
[328774102,1717782959324,4000.0,9.975e-05,2]
[328774103,1717782959349,1072.74838511,9.975e-05,2]
[328774106,1717783001351,2927.25161489,9.975e-05,2]
[328774107,1717783001378,4000.0,9.975e-05,2]
[328774108,1717783001404,1189.65228804,9.975e-05,2]
[328774109,1717783025276,2810.34771196,9.975e-05,2]
[328774110,1717783025301,4000.0,9.975e-05,2]
[328774111,1717783025325,1189.65228804,9.975e-05,2]
[328774112,1717783055277,2810.34771196,9.975e-05,2]
[328774113,1717783055301,4000.0,9.975e-05,2]
[328774114,1717783055324,1189.65228804,9.975e-05,2]
[328774115,1717783091281,2810.34771196,9.975e-05,2]
[328774116,1717783091310,4000.0,9.975e-05,2]
[328774117,1717783091336,2957.65921974,9.975e-05,2]
[328774118,1717783127280,1042.34078026,9.975e-05,2]
[328774119,1717783127304,2840.75531681,9.975e-05,2]
[328774120,1717783139026,1159.24468319,9.975e-05,2]
[328774121,1717783139051,3546.73779698,9.975e-05,2]
[328774122,1717783170969,453.26220302,9.975e-05,2]
[328774123,1717783170992,3546.73779698,9.975e-05,2]
[328774124,1717783183463,453.26220302,9.975e-05,2]
[328774125,1717783183488,1686.83630911,9.975e-05,2]
[328774126,1717783187288,2313.16369089,9.975e-05,2]
[328774127,1717783187319,46.07513244,9.975e-05,2]
[328774128,1717783202954,150.0,9.975e-05,2]
[328774129,1717783203131,150.0,9.975e-05,2]
[328774130,1717783203316,216.64624949,9.975e-05,2]
[328774131,1717783219715,3437.27861807,9.975e-05,2]
[328774132,1717783219741,2507.01231858,9.975e-05,2]
[328774133,1717783252501,362.81476569,9.975e-05,2]
[328774134,1717783253311,516.10877845,9.975e-05,2]
[328774135,1717783286966,155.0,9.975e-05,2]
[328774136,1717783302832,155.24628114,9.975e-05,2]
[328774137,1717783303590,303.81785614,9.975e-05,2]
[328774138,1717783303621,4000.0,9.975e-05,2]
[328774139,1717783303648,1123.37158367,9.975e-05,2]
[328774140,1717783311491,347.59467079,9.975e-05,2]
[328774141,1717783314870,-337.61122703,0.00017158,2]
[328774142,1717783314893,-250.84971858,0.00017257,2]
[328774143,1717783314915,-161.49734637,0.00017258,2]
[328774144,1717783314938,-1250.04170802,0.00017259,2]
[328774145,1717783316660,-2000.0,0.00017259,2]
[328774146,1717783319314,352.5,9.975e-05,2]
[328774148,1717783327491,502.37848068,9.975e-05,2]
[328774149,1717783335296,1674.15526486,9.975e-05,2]
[328774150,1717783335324,4000.0,9.975e-05,2]
[328774151,1717783335349,4000.0,9.975e-05,2]
[328774152,1717783335374,4000.0,9.975e-05,2]
[328774153,1717783335398,3382.33187391,9.975e-05,2]
[328774157,1717783395144,289.77027147,9.975e-05,2]
[328774158,1717783467520,493.77814689,9.975e-05,2]
[328774159,1717783507921,2622.66559112,0.0001,2]
[328774160,1717783529364,1884.55628971,9.975e-05,2]
[328774161,1717783543153,-705.538264,0.00016995,2]
[328774162,1717783543178,-1918.51111855,0.0001708,2]
[328774163,1717783543204,-785.97365736,0.00017081,2]
[328774164,1717783543229,-5296.37264161,0.0001717,2]
[328774165,1717783543254,-34146.16087165,0.0001717,2]
[328774167,1717783547389,1173.6491683,9.975e-05,2]
[328774172,1717783599109,-1301.8429916,0.00014999,2]
[328774173,1717783599136,-453.18629123,0.00014999,2]
[328774174,1717783599159,-459.488712,0.00015,2]
[328774175,1717783599181,-150.0,0.00017169,2]
[328774176,1717783599204,-788.86724994,0.0001717,2]
[328774177,1717783638140,-1326.47106936,0.0001717,2]
[328774182,1717783833553,-506.54758575,0.00017157,2]
[328774193,1717783833564,-1218.61187116,0.00017157,2]
[328774200,1717783833575,-162.55802593,0.00017158,2]
[328774208,1717783833585,-166.55508735,0.00017158,2]
[328774214,1717783833596,-163.21533727,0.00017159,2]
[328774220,1717783833606,-2367.76414269,0.00017159,2]
[328774224,1717783833615,-659.33630996,0.0001716,2]
[328774229,1717783833625,-1391.47819964,0.00017161,2]
[328774235,1717783833635,-4289.88630303,0.00017161,2]
[328774239,1717783833644,-281.3303214,0.00017162,2]
[328774244,1717783833658,-350.0,0.00017162,2]
[328774250,1717783833673,-6608.12190322,0.00017162,2]
[328774255,1717783833683,-327.87677653,0.00017162,2]
[328774260,1717783833692,-508.43079069,0.00017163,2]
[328774264,1717783833702,-715.3375622,0.00017163,2]
[328774268,1717783833711,-1616.01769669,0.00017165,2]
[328774272,1717783833723,-672.28170447,0.00017166,2]
[328774276,1717783833732,-10288.986694,0.0001717,2]
[328774278,1717783833744,-10913.43302,0.0001717,2]
[328774281,1717783833756,-637.7,0.0001717,2]
[328774283,1717783833768,-693.36021145,0.0001717,2]
[328774284,1717783833779,-436.578,0.0001717,2]
[328774285,1717783833792,-15715.88789981,0.0001717,2]
[328774287,1717783833804,-3670.58140367,0.0001717,2]
[328774289,1717783833817,-7412.92945812,0.0001717,2]
[328774291,1717783833829,-5599.86300862,0.0001717,2]
[328774293,1717783833839,-1046.71514559,0.0001717,2]
[328774295,1717783833849,-300.96968926,0.0001717,2]
[328774297,1717783833858,-56.98409063,0.00017257,2]
[328774300,1717783833869,-193.86562795,0.00017257,2]
[328774302,1717783833879,-161.49734637,0.00017258,2]
[328774303,1717783833888,-3111.33702568,0.00017259,2]
[328774306,1717783833899,-387.0989336,0.00017259,2]
[328774308,1717783833911,-680.86417009,0.00017259,2]
[328774310,1717783833923,-108.37657465,0.00017259,2]
[328774312,1717783833934,-7720.8261,0.000184,2]
[328774314,1717783833943,-500.0,0.000185,2]
[328774316,1717783833952,-164.66,0.00019381,2]
[328774318,1717783833962,-499.99,0.00019451,2]
[328774320,1717783833971,-257.9877105,0.0002,2]
[328774322,1717783833986,-864.44073182,0.0002,2]
[328774324,1717783833995,-6259.73033977,0.0002,2]
[328774325,1717783834006,-1011.07818296,0.0002,2]
[328774326,1717783834016,-187.4696558,0.0002,2]
[328774327,1717783834028,-155.0,0.0002,2]
[328774328,1717783834042,-155.0,0.00022498,2]
[328774329,1717783834051,-156.01882306,0.00022499,2]
[328774330,1717783834062,-3290.0,0.000229,5]
[328774331,1717783834072,-233.31,0.00024384,2]
[328774332,1717783834082,-153.45,0.00024384,2]
[328774333,1717783834092,-1026.96,0.00024384,2]